bitfinex-derivatives/quotes_ETHF0:USTF0_20250909
["timestamp","ask_amount","ask_price","bid_price","bid_amount"]
[1757446803955,5.4099,4296.8,4296.1,0.3313]
[1757446803956,0.3272,4296.3,4296.1,1.66938948]
[1757446804154,0.7499,4296.2,4296.1,1.66938948]
[1757446804359,5.8099,4296.2,4296.1,0.234]
[1757446806955,0.1271,4296.0,4295.8,33.52]
[1757446807259,0.1271,4296.0,4295.9,0.234]
[1757446807260,6.097,4296.0,4295.9,0.234]
[1757446814265,5.7623,4296.0,4295.9,1.0199]
[1757446814656,5.9699,4296.0,4295.9,1.0199]
[1757446815562,5.22,4296.0,4295.9,1.43886]
[1757446817880,5.7619,4296.0,4295.9,1.43886]
[1757446818372,5.9877,4296.0,4295.9,1.43886]
[1757446829378,0.3262,4295.9,4295.8,35.18938948]
[1757446829580,5.4462,4295.9,4295.8,33.754]
[1757446831870,8.654,4295.9,4295.8,33.754]
[1757446832081,5.4462,4295.9,4295.8,33.754]
[1757446832284,5.8877,4295.9,4295.4,1.66938948]
[1757446832584,5.8877,4295.9,4295.5,0.234]
[1757446832978,0.7677,4295.9,4295.5,0.234]
[1757446833483,6.3377,4295.9,4295.5,0.234]
[1757446836383,0.7677,4295.9,4295.5,0.234]
[1757446836582,5.7477,4295.9,4295.5,0.234]
[1757446837582,0.7677,4295.4,4295.3,1.66938948]
[1757446837781,6.3677,4295.4,4295.3,0.234]
[1757446850088,9.5755,4295.4,4295.3,0.234]
[1757446855500,9.5755,4295.4,4295.3,0.52962625]
[1757446856499,9.5755,4295.4,4295.3,0.234]
[1757446866510,9.5755,4295.4,4295.3,0.9868]
[1757446866712,6.1419,4295.4,4295.3,0.9868]
[1757446867205,6.3496,4295.4,4295.3,0.9868]
[1757446867607,6.3496,4295.4,4295.3,0.7762]
[1757446867912,6.3496,4295.4,4295.3,0.234]
[1757446869805,0.7328,4294.8,4294.7,3.75]
[1757446870012,5.6228,4294.8,4294.7,3.984]
[1757446870210,5.6228,4294.8,4294.7,4.21684]
[1757446870799,5.6228,4294.8,4294.7,3.984]
[1757446871707,5.6228,4294.8,4294.7,4.1946]
[1757446875017,5.6228,4294.8,4294.7,4.61368]
[1757446877109,5.6228,4294.8,4294.7,3.86088]
[1757446877307,5.6228,4294.8,4294.7,4.1775]
[1757446877915,5.6228,4294.8,4294.7,4.59658]
[1757446878313,5.6228,4294.8,4294.7,4.1775]
[1757446878518,5.6228,4294.8,4294.7,4.59658]
[1757446879021,5.3046,4294.8,4294.7,4.59658]
[1757446879320,5.619,4294.8,4294.7,4.59658]
[1757446879918,5.619,4294.8,4294.7,3.958]
[1757446882019,5.619,4294.8,4294.7,3.2078]
[1757446882214,5.619,4294.8,4294.7,3.4418]
[1757446883514,5.619,4294.8,4294.7,3.2078]
[1757446883718,5.619,4294.8,4294.7,3.6576]
[1757446883915,5.619,4294.8,4294.7,3.958]
[1757446889427,5.619,4294.8,4294.7,4.1775]
[1757446889927,5.619,4294.8,4294.7,4.59658]
[1757446890129,4.89,4294.8,4294.7,4.59658]
[1757446890629,5.4151,4294.8,4294.7,4.59658]
[1757446890930,5.6328,4294.8,4294.7,4.1775]
[1757446892330,5.6328,4294.8,4294.7,3.4236]
[1757446892627,5.6328,4294.8,4294.7,4.1775]
[1757446895129,5.6328,4294.8,4294.7,4.59658]
[1757446896331,5.6328,4294.8,4294.7,4.1775]
[1757446896724,5.6328,4294.8,4294.7,3.4418]
[1757446897033,5.6328,4294.8,4294.7,3.958]
[1757446898138,5.6328,4294.8,4294.7,4.1775]
[1757446901638,5.6328,4294.8,4294.7,4.59658]
[1757446902134,5.6328,4294.8,4294.7,4.1775]
[1757446904836,5.6328,4294.8,4294.7,3.958]
[1757446905851,5.6328,4294.8,4294.7,3.4418]
[1757446906843,5.6328,4294.8,4294.7,4.25147647]
[1757446907842,5.6328,4294.8,4294.7,3.95477647]
[1757446908038,5.6328,4294.8,4294.7,4.25147647]
[1757446908746,5.6328,4294.8,4294.7,3.9531]
[1757446912249,5.6328,4294.8,4294.7,3.4418]
[1757446912441,0.4087,4294.6,4294.5,2.07752522]
[1757446912752,0.8471,4294.5,4294.4,0.5113]
[1757446912938,6.3971,4294.5,4294.4,0.7256]
[1757446913438,6.3971,4294.5,4294.4,0.9596]
[1757446915648,6.3971,4294.5,4294.4,1.37871]
[1757446915848,6.3971,4294.5,4294.4,1.67461933]
[1757446917145,6.2765,4294.5,4294.4,1.67461933]
[1757446917351,5.55,4294.5,4294.4,1.67461933]
[1757446918950,5.7488,4294.5,4294.4,1.67461933]
[1757446919150,6.0666,4294.5,4294.4,1.67461933]
[1757446920754,6.0666,4294.5,4294.4,1.37871]
[1757446922151,5.7488,4294.5,4294.4,1.37871]
[1757446922353,0.5166,4295.2,4295.1,0.4289]
[1757446922659,6.5265,4295.2,4295.1,0.9596]
[1757446923656,6.5265,4295.2,4295.1,0.7453]
[1757446923856,6.5265,4295.2,4295.1,0.234]
[1757446928458,0.1206,4295.0,4294.9,3.2078]
[1757446928652,0.1206,4295.0,4294.3,0.00349024]
[1757446928653,0.1988,4294.6,4294.5,2.07752522]
[1757446928856,0.1988,4294.6,4294.4,3.2078]
[1757446928857,0.8471,4294.5,4294.4,3.2078]
[1757446929059,6.0671,4294.5,4294.4,3.4418]
[1757446933264,6.0671,4294.5,4294.4,3.2078]
[1757446933460,10.0671,4294.5,4294.4,0.234]
[1757446934767,6.0671,4294.5,4294.4,0.234]
[1757446940860,6.0671,4294.5,4294.4,0.52215429]
[1757446941869,6.0671,4294.5,4294.4,0.234]
[1757446956274,6.0671,4294.5,4293.6,33.95618]
[1757446956275,0.4185,4293.7,4293.6,33.537]
[1757446956484,5.4138,4293.7,4293.6,33.771]
[1757446957982,5.4138,4293.7,4293.6,34.0789]
[1757446959185,0.3053,4293.4,4293.3,3.2078]
[1757446959392,5.5738,4293.4,4293.3,3.9581]
[1757446959577,5.5738,4293.4,4293.3,4.1658]
[1757446959783,5.5738,4293.4,4293.3,4.58501]
[1757446960083,5.5738,4293.4,4293.3,4.1658]
[1757446961587,5.5738,4293.4,4293.3,0.234]
[1757446961792,5.5738,4293.4,4293.3,0.958]
[1757446963584,5.5738,4293.4,4293.3,0.7503]
[1757446965893,5.5738,4293.4,4293.3,0.234]
[1757446967488,0.7066,4292.9,4292.8,0.50083856]
[1757446967792,0.7066,4292.9,4292.8,0.41103856]
[1757446967793,5.6966,4292.9,4292.8,0.41103856]
[1757446968293,5.6966,4292.9,4292.8,0.93493856]
[1757446971496,5.6966,4292.9,4292.8,0.41103856]
[1757446971890,5.6966,4292.9,4292.8,0.17703856]
[1757446972090,5.6966,4292.9,4292.8,0.41103856]
[1757446973799,5.6966,4292.9,4292.8,1.55699856]
[1757446974090,5.6966,4292.9,4292.8,0.83029856]
[1757446974791,5.6966,4292.9,4292.8,0.41103856]
[1757446979201,5.6966,4292.9,4292.8,0.17703856]
[1757446984106,5.6966,4292.9,4292.8,0.46808118]
[1757446988704,5.6966,4292.9,4292.8,0.99198118]
[1757446989205,5.6966,4292.9,4292.8,0.9949336]
[1757446990507,5.6966,4292.9,4292.8,0.7948336]
[1757446992808,5.6966,4292.9,4292.8,1.5215336]
[1757446995113,5.6966,4292.9,4292.8,1.23049098]
[1757446996015,5.6966,4292.9,4292.8,1.46449098]
[1757446996613,5.6966,4292.9,4292.8,1.26169098]
[1757446997412,5.6966,4292.9,4292.8,0.93789098]
[1757446999716,5.6966,4292.9,4292.8,1.24079098]
[1757447000017,5.46938298,4292.9,4292.8,1.24079098]
[1757447000212,5.66618298,4292.9,4292.8,1.24079098]
[1757447000516,5.66618298,4292.9,4292.8,1.23911462]
[1757447003420,5.66618298,4292.9,4292.8,1.44601462]
[1757447005219,5.66618298,4292.9,4292.8,1.73951958]
[1757447007318,5.66618298,4292.9,4292.8,1.44601462]
[1757447010619,5.66618298,4292.9,4292.8,1.23911462]
[1757447014027,5.43897297,4292.9,4292.8,1.23911462]
[1757447014223,5.3848,4292.9,4292.8,1.23911462]
[1757447014528,5.3848,4292.9,4292.8,1.12093856]
[1757447015224,4.45743161,4292.9,4292.8,1.54019856]
[1757447015433,4.45743161,4292.9,4292.8,1.77314856]
[1757447015733,4.45743161,4292.9,4292.8,1.54019856]
[1757447016036,4.45743161,4292.9,4292.8,6.34019856]
[1757447019934,0.1968,4293.1,4293.0,0.95173]
[1757447020133,4.9268,4293.1,4293.0,1.48863]
[1757447024439,4.73,4293.1,4293.0,1.48863]
[1757447026138,5.3192,4293.1,4293.0,0.3029]
[1757447026443,5.1248,4293.1,4293.0,0.234]
[1757447026843,5.3192,4293.1,4293.0,0.54]
[1757447027031,5.3192,4293.1,4293.0,0.306]
[1757447027234,5.3192,4293.1,4293.0,0.54]
[1757447027435,5.3192,4293.1,4293.0,0.234]
[1757447027736,5.3192,4293.1,4293.0,1.28464]
[1757447029038,5.1248,4293.1,4293.0,1.49684]
[1757447029343,5.1248,4293.1,4293.0,1.26284]
[1757447029543,5.1248,4293.1,4293.0,1.49684]
[1757447032439,5.1248,4293.1,4293.0,1.80059213]
[1757447034349,5.3192,4293.1,4293.0,1.38135213]
[1757447034647,5.3192,4293.1,4293.0,0.96045213]
[1757447035449,5.3192,4293.1,4293.0,0.8654]
[1757447035638,5.3192,4293.1,4293.0,1.28464]
[1757447036343,5.1248,4293.1,4293.0,1.28464]
[1757447036749,5.1248,4293.1,4293.0,1.49684]
[1757447038650,5.1248,4293.1,4293.0,1.26284]
[1757447038846,5.1248,4293.1,4293.0,1.49684]
[1757447040251,5.3192,4293.1,4293.0,1.49684]
[1757447040553,5.3192,4293.1,4293.0,1.28464]
[1757447040747,5.1248,4293.1,4293.0,1.49684]
[1757447041548,5.1248,4293.1,4293.0,1.80458096]
[1757447043450,5.3192,4293.1,4293.0,0.84774096]
[1757447043953,5.3192,4293.1,4293.0,1.26698096]
[1757447044155,5.3192,4293.1,4293.0,1.59238096]
[1757447044454,5.3192,4293.1,4293.0,1.38368096]
[1757447044653,1.63956336,4293.1,4293.0,1.80458096]
[1757447044956,1.6733412,4295.5,4293.3,0.41921]
[1757447044957,0.6046,4293.8,4293.3,0.41921]
[1757447045255,3.618,4293.6,4293.4,0.34112673]
[1757447045456,8.838,4293.6,4293.5,0.10712673]
[1757447045752,5.6302,4293.6,4293.5,0.10712673]
[1757447050064,5.6302,4293.6,4293.5,0.41312673]
[1757447050356,5.6302,4293.6,4293.5,0.4227]
[1757447054660,5.6302,4293.6,4293.5,0.6314]
[1757447061364,5.6302,4293.6,4293.5,4.0514]
[1757447065559,5.6302,4293.6,4293.5,4.33634253]
[1757447070269,5.6302,4293.6,4293.5,4.3362927]
[1757447073973,5.6302,4293.6,4293.5,4.33620542]
[1757447074975,5.6302,4293.6,4293.5,4.75540542]
[1757447075676,5.6302,4293.6,4293.5,4.33620542]
[1757447077482,5.6302,4293.6,4293.5,4.75540542]
[1757447078681,5.6302,4293.6,4293.5,4.33620542]
[1757447079282,5.6302,4293.6,4293.5,4.75540542]
[1757447081583,5.4185,4293.6,4293.5,4.75540542]
[1757447085285,5.22,4293.6,4293.5,4.75540542]
[1757447085489,3.2078,4294.7,4293.8,0.41916]
[1757447085688,0.23288001,4294.6,4294.1,0.5069]
[1757447085886,5.13288001,4294.6,4294.2,0.72460542]
[1757447086080,5.13288001,4294.6,4294.3,0.28480542]
[1757447086386,5.13288001,4294.6,4294.5,0.3011]
[1757447086586,5.13288001,4294.6,4294.5,0.58590542]
[1757447086888,4.9,4294.6,4294.5,0.58590542]
[1757447088987,4.9,4294.6,4294.5,0.58589391]
[1757447090186,4.9,4294.6,4294.5,0.70689391]
[1757447092094,4.9,4294.6,4294.5,0.90559391]
[1757447092790,4.9,4294.6,4294.5,0.90556883]
[1757447100087,4.9,4294.6,4294.5,1.10396883]
[1757447101597,4.9,4294.6,4294.5,0.8192]
[1757447103301,4.9,4294.6,4294.5,1.11832994]
[1757447106500,4.9,4294.6,4294.5,0.29912994]
[1757447108404,4.9,4294.6,4294.5,0.61082994]
[1757447108808,4.9,4294.6,4294.5,0.29912994]
[1757447109205,4.9,4294.6,4294.5,0.61082994]
[1757447111716,4.9,4294.6,4294.5,0.29912994]
[1757447112415,4.9,4294.6,4294.5,0.61082994]
[1757447112914,4.9,4294.6,4294.5,0.29912994]
[1757447115817,4.9,4294.6,4294.5,0.61082994]
[1757447119520,4.9,4294.6,4294.5,1.15562994]
[1757447121621,4.9,4294.6,4294.5,1.14152522]
[1757447125512,4.9,4294.6,4294.5,0.8565]
[1757447127125,4.9,4294.6,4294.5,4.0643]
[1757447127426,4.9,4294.6,4294.5,8.4834]
[1757447127626,4.9,4294.6,4294.5,8.71625]
[1757447127821,4.9,4294.6,4294.5,13.51625]
[1757447128228,4.9,4294.6,4294.5,13.2834]
[1757447128526,4.9,4294.6,4294.5,13.51625]
[1757447128726,4.9,4294.6,4294.5,15.37174527]
[1757447129428,4.9,4294.6,4294.5,13.2834]
[1757447129629,4.9,4294.6,4294.5,13.51625]
[1757447129928,4.50270657,4294.6,4294.5,13.2834]
[1757447130127,4.50270657,4294.6,4294.5,13.51625]
[1757447130328,4.50270657,4294.6,4294.5,15.60459527]
[1757447130532,4.50270657,4294.6,4294.5,13.51625]
[1757447130721,4.50270657,4294.6,4294.5,13.2834]
[1757447132625,5.22140657,4294.6,4294.5,8.5283]
[1757447132830,5.22140657,4294.6,4294.5,3.4418]
[1757447133829,5.22140657,4294.6,4294.5,3.7448]
[1757447135730,5.22140657,4294.6,4294.5,3.4418]
[1757447136231,5.22140657,4294.6,4294.5,3.7448]
[1757447139127,5.22140657,4294.6,4294.0,3.5108]
[1757447139428,0.7187,4294.1,4294.0,3.2078]
[1757447139631,5.5987,4294.1,4294.0,3.4418]
[1757447139831,5.5987,4294.1,4294.0,3.7448]
[1757447141338,5.5987,4294.1,4294.0,3.9536]
[1757447142729,4.88,4294.1,4294.0,4.2896]
[1757447147735,4.88,4294.1,4294.0,4.70875]
[1757447148339,4.88,4294.1,4294.0,5.01710431]
[1757447153748,4.88,4294.1,4294.0,4.59795431]
[1757447153946,5.0936,4294.1,4294.0,4.59795431]
[1757447156752,5.0936,4294.1,4294.0,5.01710431]
[1757447157051,5.0936,4294.1,4294.0,4.59795431]
[1757447157247,5.2932,4294.1,4294.0,4.59795431]
[1757447157447,5.6028,4294.1,4294.0,4.59795431]
[1757447158550,5.2932,4294.1,4294.0,4.59795431]
[1757447161054,5.6028,4294.1,4294.0,4.59795431]
[1757447161956,5.2932,4294.1,4294.0,4.59795431]
[1757447162856,5.6028,4294.1,4294.0,4.59795431]
[1757447164760,5.6028,4294.1,4294.0,4.02795431]
[1757447165058,5.6028,4294.1,4294.0,4.05315431]
[1757447166161,5.2932,4294.1,4294.0,4.58385431]
[1757447168363,5.6028,4294.1,4294.0,4.58385431]
[1757447171059,5.2932,4294.1,4294.0,4.58385431]
[1757447175167,5.2932,4294.1,4294.0,4.58385431]
[1757447176971,5.6164,4294.1,4294.0,4.58385431]
[1757447185585,5.6164,4294.1,4294.0,4.2755]
[1757447197796,5.2932,4294.1,4294.0,4.2755]
[1757447199101,4.88,4294.1,4294.0,4.2755]
[1757447199397,4.88,4294.1,4294.0,7.01587527]
[1757447199788,4.88,4294.1,4294.0,11.58299527]
[1757447199989,4.88,4294.1,4294.0,9.49465]
[1757447200198,4.88,4294.1,4294.0,11.58592083]
[1757447202697,4.50147205,4294.1,4294.0,11.91617485]
[1757447203096,0.00349024,4294.9,4294.0,11.08247485]
[1757447203306,5.2534874,4294.9,4294.8,0.4078]
[1757447203497,5.2534874,4294.9,4294.8,0.97205402]
[1757447204594,5.2534874,4294.9,4294.8,1.26320745]
[1757447206503,5.2534874,4294.9,4294.8,1.27463939]
[1757447206710,4.95,4294.9,4294.8,0.86683939]
[1757447212802,4.7229078,4294.9,4294.8,0.86683939]
[1757447213006,4.7229078,4294.9,4294.8,1.28590939]
[1757447213706,3.4418,4296.4,4294.8,0.86683939]
[1757447214010,0.2328,4296.3,4295.2,3.2078]
[1757447214221,5.5728,4296.3,4295.3,0.86083939]
[1757447214405,0.23279,4296.2,4295.4,0.63283939]
[1757447214704,5.36279,4296.2,4295.5,0.86683939]
[1757447214904,0.23279,4296.1,4295.6,0.63283939]
[1757447215108,5.94279,4296.1,4295.7,0.86683939]
[1757447215302,0.23279,4296.0,4295.8,0.63283939]
[1757447215502,5.0,4296.0,4295.9,0.86009588]
[1757447215909,5.23278,4296.0,4295.9,0.86009588]
[1757447216711,5.0,4296.0,4295.9,0.86009588]
[1757447220710,5.0,4296.0,4295.9,0.62097125]
[1757447224012,5.0,4296.0,4295.9,0.62077542]
[1757447227504,5.0,4296.0,4295.9,0.63731498]
[1757447235118,5.0,4296.0,4295.9,0.6232654]
[1757447238121,4.77294764,4296.0,4295.9,0.6232654]
[1757447241523,4.77294764,4296.0,4295.9,1.0422254]
[1757447242918,4.77294764,4296.0,4295.9,0.6232654]
[1757447245920,4.77294764,4296.0,4295.9,0.8562654]
[1757447246121,4.77294764,4296.0,4295.9,0.86247096]
[1757447248125,4.54591897,4296.0,4295.9,0.86247096]
[1757447252519,4.54591897,4296.0,4295.9,0.54007716]
[1757447252726,4.54591897,4296.0,4295.9,0.86014485]
[1757447258133,4.31889195,4296.0,4295.9,0.86014485]
[1757447258334,4.31889195,4296.0,4295.9,0.89201002]
[1757447259128,4.31889195,4296.0,4295.9,1.31097002]
[1757447259342,4.31889195,4296.0,4295.9,1.39163818]
[1757447260443,4.31889195,4296.0,4295.9,6.19163818]
[1757447261342,4.31889195,4296.0,4295.9,5.88456102]
[1757447261749,0.00349024,4296.4,4296.0,0.41895]
[1757447261941,2.46,4296.4,4296.3,3.62672]
[1757447262140,2.46,4296.4,4296.3,3.85972]
[1757447262442,2.46,4296.4,4296.3,7.97225333]
[1757447262840,2.46,4296.4,4296.3,7.55333333]
[1757447263045,2.46,4296.4,4296.3,7.97225333]
[1757447263249,3.4408,4298.0,4296.4,0.41891]
[1757447263449,0.79975032,4297.9,4297.2,0.03186517]
[1757447263652,5.14271001,4297.9,4297.3,0.233]
[1757447263838,0.23269,4297.8,4297.3,0.233]
[1757447264041,5.12,4297.8,4297.3,0.233]
[1757447264241,5.12,4297.8,4297.5,0.08066816]
[1757447264457,5.12,4297.8,4297.6,0.26486517]
[1757447264750,9.12,4297.8,4297.6,0.26486517]
[1757447265448,9.12,4297.8,4297.7,0.11253333]
[1757447266251,9.12,4297.8,4297.7,0.42872617]
[1757447266645,9.7231,4297.8,4297.7,0.42872617]
[1757447266850,9.7231,4297.8,4297.7,0.11253333]
[1757447267749,9.7231,4297.8,4297.6,0.233]
[1757447269453,9.7231,4297.8,4297.7,0.61716072]
[1757447269652,9.7231,4297.8,4297.7,0.31640411]
[1757447270053,9.7231,4297.8,4297.7,0.61716072]
[1757447275755,9.7231,4297.8,4297.2,0.233]
[1757447275756,9.68683548,4297.8,4297.2,0.233]
[1757447276048,0.2816,4296.7,4296.6,0.3095]
[1757447276254,5.249,4296.7,4296.6,0.5015]
[1757447277151,5.1616,4296.7,4296.6,0.696]
[1757447279852,5.1616,4296.7,4296.6,0.737]
[1757447280053,5.1616,4296.7,4296.6,0.9326]
[1757447281157,4.88,4296.7,4296.6,0.9326]
[1757447284758,5.1616,4296.7,4296.6,0.9326]
[1757447284946,5.1616,4296.7,4296.6,0.737]
[1757447285152,5.249,4296.7,4296.6,0.737]
[1757447285751,5.249,4296.7,4296.6,0.5425]
[1757447286163,5.249,4296.7,4296.6,0.737]
[1757447286360,5.1616,4296.7,4296.6,0.737]
[1757447287554,5.0208,4296.7,4296.6,0.9326]
[1757447287754,5.0208,4296.7,4296.6,1.22723852]
[1757447287956,4.88,4296.7,4296.6,1.22723852]
[1757447288151,0.71,4296.7,4296.6,1.22723852]
[1757447290559,0.71,4296.7,4296.6,1.52199729]
[1757447290757,0.71,4296.7,4296.6,1.22735877]
[1757447296164,0.8508,4296.7,4296.6,1.22735877]
[1757447298464,0.9916,4296.7,4296.6,0.81145877]
[1757447298668,0.71,4296.7,4296.6,1.24715877]
[1757447298861,0.8508,4296.7,4296.6,1.24715877]
[1757447299062,0.9916,4296.7,4296.6,1.24715877]
[1757447299258,3.6916,4296.7,4296.6,1.01415877]
[1757447299464,3.7793,4296.7,4296.6,1.04445877]
[1757447299765,3.6916,4296.7,4296.6,1.04445877]
[1757447299963,3.7793,4296.7,4296.6,0.60425877]
[1757447300262,3.7793,4296.7,4296.6,0.52775877]
[1757447301771,3.7793,4296.7,4296.6,0.52498031]
[1757447302171,3.7793,4296.7,4296.6,0.82498031]
[1757447305670,3.7793,4296.7,4296.6,0.52498031]
[1757447306469,3.7793,4296.7,4296.6,0.29198031]
[1757447306661,7.7793,4296.7,4296.1,0.3]
[1757447306866,3.6916,4296.7,4296.2,0.55071029]
[1757447307067,3.6916,4296.7,4296.2,0.233]
[1757447308974,3.6916,4296.7,4296.2,0.533]
[1757447309176,3.6916,4296.7,4296.3,0.3]
[1757447309374,3.6916,4296.7,4296.2,0.233]
[1757447309571,3.6916,4296.7,4296.3,0.3]
[1757447310275,3.6916,4296.7,4296.2,0.233]
[1757447311068,3.6916,4296.7,4296.3,0.3]
[1757447311465,3.6916,4296.7,4296.2,0.233]
[1757447312371,3.6916,4296.7,4296.0,0.129]
[1757447312572,3.6916,4296.7,4296.1,0.533]
[1757447313276,3.6916,4296.7,4296.1,0.233]
[1757447313479,3.6916,4296.7,4296.2,0.3]
[1757447315073,3.6916,4296.7,4296.5,0.129]
[1757447315278,3.6916,4296.7,4296.6,0.5072]
[1757447317576,3.6916,4296.7,4296.6,0.3]
[1757447318180,3.41,4296.7,4296.6,0.7099]
[1757447318782,3.41,4296.7,4296.6,0.99679672]
[1757447319182,3.41,4296.7,4296.6,5.41569672]
[1757447319378,3.41,4296.7,4296.6,1.41569672]
[1757447320182,3.41,4296.7,4296.6,0.99679672]
[1757447320684,3.41,4296.7,4296.6,5.79679672]
[1757447325385,3.41,4296.7,4296.6,6.02979672]
[1757447326484,3.41,4296.7,4296.6,5.59409672]
[1757447326685,3.41,4296.7,4296.6,6.02979672]
[1757447326985,3.41,4296.7,4296.6,1.22979672]
[1757447327681,3.41,4296.7,4296.6,0.99679672]
[1757447327889,3.41,4296.7,4296.6,0.81989672]
[1757447329788,3.41,4296.7,4296.6,1.03339672]
[1757447329988,3.41,4296.7,4296.6,1.24009672]
[1757447332690,3.41,4296.7,4296.6,0.58689672]
[1757447332890,3.41,4296.7,4296.6,0.81989672]
[1757447333092,3.41,4296.7,4296.6,0.51989672]
[1757447334490,3.41,4296.7,4296.6,0.81729672]
[1757447334987,3.41,4296.7,4296.6,0.58429672]
[1757447335191,3.41,4296.7,4296.6,0.81729672]
[1757447335688,3.41,4296.7,4296.6,0.5304]
[1757447336281,3.41,4296.7,4296.3,3.2078]
[1757447336482,3.41,4296.7,4296.4,0.233]
[1757447336688,3.41,4296.7,4296.1,0.2974]
[1757447336886,3.41,4296.7,4296.2,0.233]
[1757447339596,3.41,4296.7,4296.2,0.5304]
[1757447339892,3.41,4296.7,4295.7,3.2078]
[1757447340098,0.233,4296.6,4295.8,0.5304]
[1757447340397,5.003,4296.6,4295.9,0.2974]
[1757447340795,5.003,4296.6,4296.0,0.1218]
[1757447340996,5.003,4296.6,4296.1,0.2974]
[1757447341199,5.003,4296.6,4296.0,0.1218]
[1757447341995,5.003,4296.6,4296.1,0.2974]
[1757447342189,5.003,4296.6,4296.0,0.1218]
[1757447342397,5.003,4296.6,4296.1,0.2974]
[1757447342698,5.003,4296.6,4296.0,0.1218]
[1757447342896,5.003,4296.6,4296.1,0.2974]
[1757447343400,5.003,4296.6,4296.0,0.1218]
[1757447343598,5.003,4296.6,4296.1,0.2974]
[1757447343799,5.003,4296.6,4296.0,0.1218]
[1757447344200,3.2078,4296.5,4296.0,0.1218]
[1757447344402,8.8478,4296.5,4296.0,0.1218]
[1757447344899,0.46576,4296.4,4295.0,2.21247083]
[1757447345105,3.2078,4296.0,4295.3,0.233]
[1757447345298,0.233,4295.9,4295.5,0.00349024]
[1757447345507,5.11579,4295.9,4295.5,0.00349024]
[1757447345702,4.883,4295.9,4295.5,0.00349024]
[1757447345902,4.883,4295.9,4295.5,0.30089024]
[1757447346812,4.883,4295.9,4295.6,0.2974]
[1757447348418,4.883,4295.9,4295.5,0.00349024]
[1757447349514,4.883,4295.9,4295.5,0.30089024]
[1757447350217,4.883,4295.9,4295.5,0.12529024]
[1757447350418,4.883,4295.9,4295.6,0.2974]
[1757447352822,4.883,4295.9,4295.5,0.12529024]
[1757447353014,4.883,4295.9,4295.6,0.2974]
[1757447353216,4.883,4295.9,4295.5,0.00349024]
[1757447353817,4.883,4295.9,4295.5,0.30089024]
[1757447354020,4.883,4295.9,4295.5,0.12529024]
[1757447354220,4.883,4295.9,4295.6,0.2974]
[1757447354422,4.883,4295.9,4295.5,0.12529024]
[1757447354622,4.883,4295.9,4295.6,0.2974]
[1757447354923,4.883,4295.9,4295.5,0.12529024]
[1757447355118,4.883,4295.9,4295.6,0.2974]
[1757447355720,4.883,4295.9,4295.5,0.33879024]
[1757447356019,4.883,4295.9,4295.6,0.5109]
[1757447356220,4.883,4295.9,4295.5,0.12529024]
[1757447356421,4.883,4295.9,4295.6,0.2974]
[1757447356620,4.883,4295.9,4295.6,0.2943]
[1757447356920,0.0012,4295.6,4295.5,0.53999024]
[1757447357121,4.7612,4295.6,4295.5,0.53999024]
[1757447357321,4.7612,4295.6,4295.5,0.83429024]
[1757447358119,4.76,4295.6,4295.5,0.83429024]
[1757447358518,4.7612,4295.6,4295.5,0.83429024]
[1757447359328,4.7624,4295.6,4295.5,0.41959024]
[1757447360831,4.7624,4295.6,4295.5,0.29779024]
[1757447361728,4.7624,4295.6,4295.5,0.42399024]
[1757447363838,4.7612,4295.6,4295.5,0.83869024]
[1757447364138,4.76,4295.6,4295.5,0.83869024]
[1757447365332,4.76,4295.6,4295.5,4.83869024]
[1757447365535,4.4357,4295.6,4295.5,5.25770024]
[1757447365828,4.4357,4295.6,4295.5,4.83869024]
[1757447366029,4.4357,4295.6,4295.5,5.25770024]
[1757447367233,4.4357,4295.6,4295.5,10.05770024]
[1757447368933,4.4357,4295.6,4295.5,10.29070024]
[1757447370732,4.8508,4295.6,4295.5,9.87169024]
[1757447370930,4.8508,4295.6,4295.5,5.63869024]
[1757447371132,5.1524,4295.6,4295.5,0.23649024]
[1757447372235,5.1524,4295.6,4295.5,0.00349024]
[1757447372433,5.1524,4295.6,4295.5,0.23749024]
[1757447373537,5.1524,4295.6,4295.5,0.53179024]
[1757447373937,5.1524,4295.6,4295.5,0.23749024]
[1757447375940,5.1524,4295.6,4295.5,0.74129024]
[1757447376144,5.1524,4295.6,4295.5,1.07269024]
[1757447377444,5.1524,4295.6,4295.5,0.74129024]
[1757447378440,5.1524,4295.6,4295.5,0.53179024]
[1757447378641,5.1524,4295.6,4295.5,0.23749024]
[1757447378850,5.1524,4295.6,4295.5,0.53179024]
[1757447379147,5.1524,4295.6,4295.5,0.74129024]
[1757447381750,5.1524,4295.6,4295.5,1.03619387]
[1757447381948,5.1524,4295.6,4295.5,0.53239387]
[1757447383747,5.1524,4295.6,4295.5,0.23749024]
[1757447384247,5.1524,4295.6,4295.5,0.53179024]
[1757447384546,5.1524,4295.6,4295.5,0.00349024]
[1757447390752,5.1524,4295.6,4295.5,0.31309024]
[1757447391650,5.1524,4295.6,4295.5,0.51169024]
[1757447391849,5.1524,4295.6,4295.5,0.83239024]
[1757447395550,4.4357,4295.6,4295.5,0.83239024]
[1757447395755,4.6312,4295.6,4295.5,0.83239024]
[1757447396457,4.8451,4295.6,4295.5,0.83239024]
[1757447396656,5.1504,4295.6,4295.5,0.83239024]
[1757447396854,5.1504,4295.6,4295.5,0.51169024]
[1757447397054,5.1504,4295.6,4295.5,0.31309024]
[1757447397658,5.1504,4295.6,4295.5,0.51169024]
[1757447399858,5.1504,4295.6,4295.5,0.8027256]
[1757447400357,0.3053,4296.8,4295.6,0.41901]
[1757447400560,0.7147,4296.7,4296.6,0.1986]